bitfinex/quotes_SOLUSD_20230102
["timestamp","ask_amount","ask_price","bid_price","bid_amount"]
[1672618129493,30.0,9.9789,9.9709,20.0]
[1672618129717,30.0,9.9787,9.9709,20.0]
[1672618130023,30.0,9.9785,9.9709,20.0]
[1672618130211,30.0,9.9783,9.9709,20.0]
[1672618130427,75.28,9.9782,9.9709,20.0]
[1672618130631,30.0,9.9781,9.9709,20.0]
[1672618130851,30.0,9.9781,9.9705,74.66177315]
[1672618130852,75.28,9.978,9.9704,74.66177315]
[1672618131065,30.0,9.9779,9.9669,17.74]
[1672618131276,95.28,9.9778,9.9632,30.0]
[1672618131485,95.28,9.9778,9.9633,17.75]
[1672618131486,30.0,9.9777,9.9633,17.75]
[1672618131709,30.0,9.9775,9.9633,56.60714416]
[1672618131905,75.29,9.9774,9.9634,17.75]
[1672618132100,75.29,9.9774,9.9634,56.60714416]
[1672618132101,236.088,9.9774,9.9634,56.60714416]
[1672618132315,30.0,9.9773,9.9635,74.35714416]
[1672618132522,30.0,9.9771,9.9635,74.35714416]
[1672618132737,75.29,9.977,9.9635,74.35714416]
[1672618133170,30.0,9.9769,9.9635,74.35714416]
[1672618133380,30.0,9.9769,9.9636,30.0]
[1672618133381,30.0,9.9767,9.9636,30.0]
[1672618133593,75.29,9.9766,9.9637,17.75]
[1672618133918,30.0,9.9765,9.9637,17.75]
[1672618134117,30.0,9.9763,9.9637,17.75]
[1672618134331,30.0,9.9761,9.9637,17.75]
[1672618134541,75.3,9.976,9.9637,17.75]
[1672618134736,30.0,9.9759,9.9637,17.75]
[1672618134943,30.0,9.9757,9.9637,17.75]
[1672618135267,30.0,9.9755,9.9637,17.75]
[1672618135584,75.3,9.9754,9.9637,17.75]
[1672618135800,30.0,9.9753,9.9637,17.75]
[1672618136154,30.0,9.9751,9.9638,30.0]
[1672618136355,30.0,9.9749,9.9638,30.0]
[1672618136548,75.3,9.9748,9.9638,30.0]
[1672618136885,30.0,9.9747,9.9638,30.0]
[1672618137098,30.0,9.9745,9.9638,30.0]
[1672618137281,75.31,9.9744,9.9638,30.0]
[1672618137518,30.0,9.9743,9.9638,30.0]
[1672618137703,30.0,9.9741,9.9638,30.0]
[1672618137926,75.31,9.974,9.9638,30.0]
[1672618138245,75.31,9.974,9.9638,86.60714416]
[1672618138558,163.6996,9.9739,9.9638,86.60714416]
[1672618138761,105.31,9.9738,9.9638,86.60714416]
[1672618138949,269.0096,9.9738,9.9638,86.60714416]
[1672618139593,163.6996,9.9737,9.9638,86.60714416]
[1672618139904,75.31,9.9736,9.9638,86.60714416]
[1672618140245,239.0096,9.9736,9.9638,86.60714416]
[1672618140641,49.6242,9.9735,9.9638,86.60714416]
[1672618140863,75.32,9.9734,9.9638,86.60714416]
[1672618141279,49.6242,9.9733,9.9638,86.60714416]
[1672618141481,75.32,9.9732,9.9638,86.60714416]
[1672618141907,47.4512,9.9731,9.9638,86.60714416]
[1672618142107,75.32,9.973,9.9638,86.60714416]
[1672618142546,47.4512,9.9729,9.9638,86.60714416]
[1672618142756,75.32,9.9728,9.9638,86.60714416]
[1672618143283,23.7006,9.9727,9.964,30.0]
[1672618143479,75.32,9.9726,9.9641,17.75]
[1672618143733,99.0206,9.9726,9.9642,30.0]
[1672618143916,23.7006,9.9726,9.9644,30.0]
[1672618144114,23.7006,9.9726,9.9646,30.0]
[1672618144323,23.7006,9.9725,9.9647,17.75]
[1672618144661,23.7006,9.9725,9.9648,30.0]
[1672618144860,23.7006,9.9724,9.9649,17.75]
[1672618145481,24.9722,9.9723,9.9649,17.75]
[1672618146130,24.9722,9.9722,9.9649,17.75]
[1672618146833,24.9722,9.9721,9.9649,17.75]
[1672618147267,24.9722,9.9721,9.965,30.0]
[1672618147476,24.9722,9.972,9.965,30.0]
[1672618147690,24.9722,9.972,9.9652,30.0]
[1672618148099,24.9722,9.972,9.9654,30.0]
[1672618153048,24.9722,9.972,9.9653,56.60714416]
[1672618153243,24.9722,9.972,9.9655,30.0]
[1672618153466,24.9722,9.972,9.9656,17.75]
[1672618156702,24.9722,9.972,9.9657,30.0]
[1672618156912,24.9722,9.972,9.9658,17.75]
[1672618158938,24.9722,9.972,9.9659,30.0]
[1672618163014,24.9722,9.972,9.966,15.80730786]
[1672618163665,24.9722,9.972,9.966,15.30730786]
[1672618163865,75.33,9.9719,9.966,15.30730786]
[1672618164080,24.9722,9.972,9.966,15.30730786]
[1672618167228,24.9722,9.972,9.9661,30.0]
[1672618170591,24.9722,9.972,9.966,15.30730786]
[1672618171654,24.9722,9.972,9.9658,17.75]
[1672618175421,24.9722,9.972,9.9659,30.0]
[1672618175655,24.9722,9.972,9.9659,45.80730786]
[1672618175847,24.9722,9.972,9.9661,30.0]
[1672618176266,24.9722,9.972,9.9662,15.80730786]
[1672618177120,24.9722,9.972,9.9658,17.75]
[1672618181247,24.9722,9.972,9.9659,45.80730786]
[1672618181735,24.9722,9.972,9.966,15.80730786]
[1672618182578,24.9722,9.972,9.9661,30.0]
[1672618182982,24.9722,9.972,9.9662,15.80730786]
[1672618183213,24.9722,9.972,9.9663,30.0]
[1672618183612,24.9722,9.972,9.9664,15.80730786]
[1672618199720,24.9722,9.972,9.9658,17.75]
[1672618199934,24.9722,9.972,9.9659,15.80730786]
[1672618200339,24.9722,9.972,9.9658,17.75]
[1672618200757,75.33,9.9719,9.9658,17.75]
[1672618206658,166.14716906,9.9719,9.9658,17.75]
[1672618206853,30.0,9.9718,9.9658,17.75]
[1672618207068,75.33,9.9717,9.9658,17.75]
[1672618207505,184.92016289,9.9717,9.9658,17.75]
[1672618208741,109.59016289,9.9717,9.9658,17.75]
[1672618209379,24.9722,9.972,9.9658,17.75]
[1672618216031,30.0,9.9719,9.9646,15.80730786]
[1672618216226,30.0,9.9719,9.9647,17.8]
[1672618216744,139.59016289,9.9719,9.9647,17.8]
[1672618216965,24.948,9.9718,9.9647,33.60730786]
[1672618217590,24.948,9.9717,9.9647,15.80730786]
[1672618217917,30.0,9.9716,9.9648,17.8]
[1672618218120,24.948,9.9717,9.9647,15.80730786]
[1672618218319,109.59016289,9.9716,9.9647,15.80730786]
[1672618218768,134.53816289,9.9716,9.9648,30.0]
[1672618218967,24.948,9.9716,9.9648,30.0]
[1672618219387,24.948,9.9716,9.9647,15.80730786]
[1672618219704,24.948,9.9716,9.9648,17.8]
[1672618220224,24.948,9.9716,9.9648,33.60730786]
[1672618221998,134.53816289,9.9716,9.9648,33.60730786]
[1672618222430,30.0,9.9715,9.9648,33.60730786]
[1672618222642,134.53816289,9.9716,9.9648,33.60730786]
[1672618223697,30.0,9.9714,9.9648,33.60730786]
[1672618224304,139.59016289,9.9714,9.9648,33.60730786]
[1672618224520,30.0,9.9714,9.9648,33.60730786]
[1672618224731,24.948,9.9716,9.9648,33.60730786]
[1672618224947,30.0,9.9715,9.9648,33.60730786]
[1672618225157,24.948,9.9716,9.9648,33.60730786]
[1672618225677,24.948,9.9716,9.9649,30.0]
[1672618226526,24.948,9.9716,9.9648,15.80730786]
[1672618227570,134.53816289,9.9716,9.9648,15.80730786]
[1672618227784,134.53816289,9.9716,9.9649,30.0]
[1672618227996,134.53816289,9.9716,9.965,16.24]
[1672618228212,134.53816289,9.9716,9.9651,30.0]
[1672618228420,134.53816289,9.9716,9.9651,45.80730786]
[1672618229684,134.53816289,9.9716,9.9651,15.80730786]
[1672618229886,134.53816289,9.9716,9.9652,30.0]
[1672618230929,24.948,9.9716,9.9652,30.0]
[1672618233235,24.948,9.9716,9.9651,15.80730786]
[1672618236948,134.53816289,9.9716,9.9651,15.80730786]
[1672618237976,134.53816289,9.9716,9.9644,23.04]
[1672618238404,75.33,9.9715,9.9644,23.04]
[1672618238614,99.8376,9.9715,9.9644,23.04]
[1672618239031,209.42776289,9.9715,9.9644,23.04]
[1672618239249,54.5076,9.9714,9.9644,23.04]
[1672618239465,75.33,9.9713,9.9644,23.04]
[1672618239887,30.0,9.9712,9.9644,23.04]
[1672618240204,75.33,9.9711,9.9644,23.04]
[1672618240817,24.8905,9.9712,9.9644,23.04]
[1672618241250,75.33,9.9711,9.9644,23.04]
[1672618242821,166.14716906,9.9711,9.9644,23.04]
[1672618243025,184.92016289,9.9711,9.9644,23.04]
[1672618243666,30.0,9.971,9.9644,23.04]
[1672618244297,109.59016289,9.971,9.9644,23.04]
[1672618245454,109.59016289,9.971,9.9644,38.84730786]
[1672618246186,75.33,9.9711,9.9644,38.84730786]
[1672618248693,75.33,9.9711,9.9645,30.0]
[1672618248922,184.92016289,9.9711,9.9645,30.0]
[1672618249130,30.0,9.971,9.9644,23.04]
[1672618249656,139.59016289,9.971,9.9644,23.04]
[1672618249847,109.59016289,9.971,9.9644,23.04]
[1672618250482,30.0,9.9709,9.9644,23.04]
[1672618251125,75.33,9.9708,9.9644,23.04]
[1672618251325,30.0,9.9707,9.9644,23.04]
[1672618251538,75.34,9.9706,9.9644,23.04]
[1672618251753,75.34,9.9707,9.9644,23.04]
[1672618251957,75.33,9.9708,9.9644,23.04]
[1672618252175,30.0,9.9707,9.9644,23.04]
[1672618252384,75.34,9.9706,9.9644,23.04]
[1672618252589,30.0,9.9705,9.9644,23.04]
[1672618252915,30.0,9.9703,9.9644,23.04]
[1672618254906,139.59016289,9.9703,9.9644,23.04]
[1672618257318,30.0,9.9703,9.9644,23.04]
[1672618257961,30.0,9.9707,9.9644,23.04]
[1672618260909,139.59016289,9.9707,9.9644,23.04]
[1672618262381,109.59016289,9.9707,9.9644,23.04]
[1672618262591,30.0,9.9706,9.9644,23.04]
[1672618263204,139.59016289,9.9706,9.9644,23.04]
[1672618263957,30.0,9.9706,9.9644,23.04]
[1672618264571,23.8364,9.9708,9.9645,30.0]
[1672618265423,23.8364,9.9708,9.9646,15.80730786]
[1672618266668,42.60939383,9.9708,9.9646,15.80730786]
[1672618266879,75.34,9.9707,9.9646,15.80730786]
[1672618267213,133.42656289,9.9708,9.9646,15.80730786]
[1672618267411,23.8364,9.9708,9.9646,15.80730786]
[1672618267624,109.59016289,9.9707,9.9646,15.80730786]
[1672618269842,30.0,9.9706,9.9646,15.80730786]
[1672618270242,23.8364,9.9708,9.9644,23.04]
[1672618270452,23.8364,9.9708,9.9644,38.84730786]
[1672618272868,133.42656289,9.9708,9.9644,38.84730786]
[1672618273310,30.0,9.9707,9.9644,38.84730786]
[1672618273623,75.34,9.9706,9.9644,38.84730786]
[1672618273834,23.8364,9.9708,9.9644,38.84730786]
[1672618274046,109.59016289,9.9707,9.9644,38.84730786]
[1672618275619,30.0,9.9706,9.9644,38.84730786]
[1672618276168,23.8364,9.9708,9.9644,38.84730786]
[1672618276871,30.0,9.9706,9.9644,23.04]
[1672618277065,30.0,9.9704,9.9644,23.04]
[1672618277280,75.34,9.9703,9.9644,23.04]
[1672618277490,30.0,9.9702,9.9644,23.04]
[1672618277713,30.0,9.97,9.9644,23.04]
[1672618277928,30.0,9.9698,9.9644,23.04]
[1672618278117,75.34,9.9697,9.9644,23.04]
[1672618278551,30.0,9.9696,9.9644,23.04]
[1672618278762,30.0,9.9694,9.9644,23.04]
[1672618278999,75.35,9.9693,9.9644,23.04]
[1672618279212,30.0,9.9692,9.9644,23.04]
[1672618279425,75.35,9.9691,9.9644,23.04]
[1672618279619,75.34,9.9695,9.9644,23.04]
[1672618280053,30.0,9.9696,9.9644,23.04]
[1672618280671,30.0,9.9694,9.9644,23.04]
[1672618280881,75.35,9.9693,9.9644,23.04]
[1672618281309,30.0,9.9692,9.9644,23.04]
[1672618289299,30.0,9.969,9.9644,23.04]
[1672618291176,30.0,9.9688,9.9644,23.04]
[1672618298227,30.0,9.9687,9.9644,23.04]
[1672618300635,30.0,9.9692,9.9644,23.04]
[1672618301493,75.34,9.9699,9.9644,23.04]
[1672618306206,109.59016289,9.9698,9.9644,23.04]
[1672618308755,30.0,9.9702,9.9644,23.04]
[1672618309071,75.34,9.9701,9.9644,23.04]
[1672618309262,30.0,9.9702,9.9644,23.04]
[1672618310114,75.34,9.9703,9.9644,23.04]
[1672618310434,75.33,9.9713,9.9644,23.04]
[1672618310747,75.34,9.9707,9.9644,23.04]
[1672618311992,184.93016289,9.9707,9.9644,23.04]
[1672618314956,30.0,9.9706,9.9644,23.04]
[1672618315169,30.0,9.9704,9.9644,23.04]
[1672618315484,75.34,9.9703,9.9644,23.04]
[1672618315793,30.0,9.9702,9.9644,23.04]
[1672618316643,30.0,9.97,9.9644,23.04]
[1672618316851,75.34,9.9699,9.9644,23.04]
[1672618317044,30.0,9.9698,9.9644,23.04]
[1672618318106,139.59016289,9.9698,9.9644,23.04]
[1672618320505,30.0,9.9698,9.9644,23.04]
[1672618323770,95.34,9.9697,9.9519,74.66177315]
[1672618323991,95.34,9.9697,9.9591,0.81228465]
[1672618323992,414.06112134,9.9697,9.9591,0.81228465]
[1672618324206,488.7661,9.9696,9.9536,24.227]
[1672618324400,125.34,9.9695,9.9537,23.06]
[1672618324606,30.0,9.9694,9.9537,23.06]
[1672618324825,95.35,9.9693,9.9537,23.06]
[1672618325045,95.35,9.9693,9.9538,134.9709]
[1672618325046,299.6,9.9692,9.9538,134.9709]
[1672618325246,299.6,9.969,9.9539,23.06]
[1672618325450,299.6,9.9688,9.9539,23.06]
[1672618325666,299.6,9.9686,9.954,134.9709]
[1672618325884,95.35,9.9685,9.9541,23.06]
[1672618326098,30.0,9.9684,9.9542,30.0]
[1672618326290,95.35,9.9683,9.9543,60.79]
[1672618326503,30.0,9.9682,9.9543,60.79]
[1672618326823,95.36,9.9681,9.9543,60.79]
[1672618327040,30.0,9.968,9.9544,119.5935]
[1672618327245,30.0,9.9678,9.9545,54.62]
[1672618327455,95.36,9.9677,9.9545,54.62]
[1672618327676,30.0,9.9676,9.9545,174.2135]
[1672618327876,30.0,9.9674,9.9545,174.2135]
[1672618328082,95.36,9.9673,9.9546,30.0]
[1672618328298,30.0,9.9672,9.9547,44.79]
[1672618328506,75.36,9.9671,9.9548,30.0]
[1672618328721,30.0,9.967,9.9549,42.02]
[1672618328932,30.0,9.9668,9.955,30.0]
[1672618329144,75.37,9.9667,9.9552,30.0]
[1672618329356,30.0,9.9666,9.9553,39.46]
[1672618329564,75.37,9.9665,9.9551,55.26730786]
[1672618329776,30.0,9.9664,9.9553,15.80730786]
[1672618329981,75.37,9.9663,9.9554,39.24]
[1672618330300,30.0,9.9662,9.9554,39.24]
[1672618330502,30.0,9.966,9.9549,39.35]
[1672618330713,30.0,9.9658,9.9549,39.35]
[1672618330922,75.37,9.9657,9.955,30.0]
[1672618331148,30.0,9.9656,9.9551,36.28]
[1672618331359,30.0,9.9654,9.9551,52.08730786]
[1672618331572,75.38,9.9653,9.9552,15.80730786]
[1672618331765,30.0,9.9652,9.9553,36.49]
[1672618332096,30.0,9.965,9.9553,36.49]
[1672618332297,75.38,9.9649,9.9553,36.49]
[1672618332516,30.0,9.9648,9.9553,36.49]
[1672618332707,30.0,9.9646,9.9553,36.49]
[1672618332918,75.38,9.9645,9.9553,36.49]
[1672618333142,30.0,9.9644,9.9553,36.49]
[1672618333353,75.38,9.9643,9.9553,36.49]
[1672618333560,75.38,9.9643,9.9554,30.0]
[1672618333765,24.3028,9.9642,9.9555,38.61]
[1672618333973,24.3028,9.9642,9.9554,15.80730786]
[1672618334181,24.3028,9.9642,9.9555,55.81730786]
[1672618334515,24.3028,9.9641,9.9556,45.80730786]
[1672618334714,30.0,9.964,9.9557,41.75]
[1672618334910,54.3028,9.964,9.9557,41.75]
[1672618335249,54.3028,9.964,9.9559,30.0]
[1672618335461,24.3028,9.9639,9.9561,30.0]
[1672618335652,24.3028,9.9639,9.9563,30.0]
[1672618335862,24.3028,9.9639,9.9564,45.2]
[1672618336076,30.0,9.9637,9.9564,45.2]
[1672618336288,30.0,9.9637,9.9561,15.80730786]
[1672618336616,24.3028,9.9638,9.9563,30.0]
[1672618336938,23.2128,9.9636,9.9565,30.0]
[1672618337244,23.2128,9.9636,9.9566,47.31]
[1672618337436,23.2128,9.9635,9.9566,47.31]
[1672618337647,23.2128,9.9635,9.9567,30.0]
[1672618337858,23.2128,9.9635,9.9568,47.5]
[1672618338303,23.2128,9.9635,9.9557,47.72]
[1672618338494,23.2128,9.9634,9.9557,47.72]
[1672618338829,30.0,9.9633,9.955,46.71]
[1672618339018,53.2128,9.9633,9.9549,45.59]
[1672618339644,23.2128,9.9632,9.9549,45.59]
[1672618340285,24.3331,9.9631,9.955,30.0]
[1672618340499,24.3331,9.9631,9.9551,45.49]
[1672618340712,24.3331,9.9631,9.9552,30.0]
[1672618340905,24.3331,9.963,9.9553,44.96]
[1672618341116,30.0,9.9629,9.9549,44.59]
[1672618341343,30.0,9.9627,9.9549,44.59]
[1672618343980,53.229,9.9627,9.9549,44.59]
[1672618345014,53.229,9.9627,9.9527,45.59]
[1672618345015,75.4,9.9626,9.9527,45.59]
[1672618345326,75.4,9.9626,9.9507,22.785]
[1672618345327,30.0,9.9625,9.9535,45.58]
[1672618345538,30.0,9.9623,9.9535,45.58]
[1672618345752,75.4,9.9622,9.9535,45.58]
[1672618346071,75.4,9.9624,9.9547,42.12]
[1672618346283,23.229,9.9627,9.9549,40.29]
[1672618346507,30.0,9.9626,9.9549,40.29]
[1672618346897,23.229,9.9627,9.955,30.0]
[1672618347121,23.229,9.9627,9.9551,39.27]
[1672618347320,30.0,9.9626,9.9551,39.27]
[1672618347535,30.0,9.9626,9.9549,38.88]
[1672618347966,96.14758499,9.9626,9.9549,38.88]
[1672618348285,30.0,9.9626,9.9549,38.88]
[1672618348491,30.0,9.9624,9.9549,38.88]
[1672618348708,75.4,9.9623,9.9549,38.88]
[1672618348905,30.0,9.9622,9.9549,38.88]
[1672618350052,329.6,9.9622,9.9548,49.29448125]
[1672618350283,329.6,9.9622,9.95,236.194459]
[1672618350284,30.0,9.9599,9.95,236.194459]
[1672618350492,236.2256,9.9598,9.95,236.194459]
[1672618350697,50.0,9.9597,9.95,236.194459]
[1672618350909,75.42,9.9596,9.95,236.194459]
[1672618351230,116.52593389,9.9595,9.95,236.194459]
[1672618351444,75.42,9.9594,9.95,236.194459]
[1672618351639,20.0,9.9593,9.95,236.194459]
[1672618351849,30.0,9.9591,9.95,236.194459]
[1672618352061,30.0,9.9589,9.95,236.194459]
[1672618352277,95.43,9.9588,9.95,236.194459]
[1672618352703,30.0,9.9587,9.95,236.194459]
[1672618352909,95.43,9.9586,9.95,236.194459]
[1672618353134,30.0,9.9585,9.95,236.194459]
[1672618353338,30.0,9.9583,9.95,236.194459]
[1672618353545,30.0,9.9581,9.95,236.194459]
[1672618353748,95.43,9.958,9.95,236.194459]
[1672618353954,30.0,9.9579,9.95,236.194459]
[1672618354163,95.43,9.9578,9.95,236.194459]
[1672618354384,30.0,9.9577,9.95,236.194459]
[1672618354597,30.0,9.9575,9.95,236.194459]
[1672618354811,30.0,9.9573,9.95,236.194459]
[1672618355128,30.0,9.9571,9.95,236.194459]
[1672618355326,75.44,9.957,9.95,236.194459]
[1672618355543,30.0,9.9569,9.95,236.194459]
[1672618355750,30.0,9.9567,9.95,236.194459]
[1672618356072,30.0,9.9565,9.95,236.194459]
[1672618356271,75.44,9.9564,9.95,236.194459]
[1672618356472,30.0,9.9563,9.95,236.194459]
[1672618356686,75.45,9.9562,9.95,236.194459]
[1672618356908,30.0,9.9561,9.95,236.194459]
[1672618357120,75.45,9.956,9.95,236.194459]
[1672618357323,30.0,9.9559,9.95,236.194459]
[1672618357548,30.0,9.9557,9.95,236.194459]
[1672618357743,75.45,9.9556,9.95,236.194459]
[1672618358074,30.0,9.9555,9.95,236.194459]
[1672618358259,75.45,9.9554,9.95,236.194459]
[1672618358473,30.0,9.9553,9.95,236.194459]
[1672618358698,30.0,9.9551,9.95,236.194459]
[1672618358911,30.0,9.9549,9.95,236.194459]
[1672618359113,75.46,9.9548,9.95,236.194459]
[1672618359310,30.0,9.9547,9.95,236.194459]
[1672618359524,30.0,9.9547,9.95,235.694459]
[1672618367841,30.0,9.9545,9.95,235.694459]
[1672618368061,30.0,9.9543,9.95,235.694459]
[1672618371534,29.793052,9.9543,9.95,235.694459]
[1672618372690,30.0,9.9549,9.95,235.694459]
[1672618373097,128.5244,9.9553,9.95,235.694459]
[1672618373306,98.5244,9.9553,9.95,235.694459]
[1672618373520,23.0744,9.9553,9.95,235.694459]
[1672618374982,30.0,9.9551,9.95,235.694459]
[1672618375193,75.45,9.955,9.95,235.694459]
[1672618375624,30.0,9.9551,9.95,235.694459]
[1672618376046,30.0,9.9549,9.95,235.694459]
[1672618376365,30.0,9.9547,9.95,235.694459]
[1672618376560,75.46,9.9546,9.95,235.694459]
[1672618376772,30.0,9.9545,9.95,235.694459]
[1672618376995,30.0,9.9543,9.95,235.694459]
[1672618377824,30.0,9.9545,9.95,235.694459]
[1672618380027,30.0,9.9559,9.95,235.694459]
[1672618382763,30.0,9.9583,9.95,235.694459]
[1672618383400,30.0,9.9567,9.95,235.694459]
[1672618385282,99.4347,9.9568,9.9501,30.0]
[1672618385611,23.9947,9.9568,9.9501,30.0]
[1672618385932,23.9947,9.9568,9.95,235.694459]
[1672618386121,30.0,9.9552,9.95,235.694459]
[1672618387178,30.0,9.9567,9.95,235.694459]
[1672618392562,23.9947,9.9568,9.9501,30.0]
[1672618392768,323.8931,9.9667,9.9501,30.0]
[1672618392769,30.0,9.9666,9.9503,30.0]
[1672618393093,85.05260056,9.9658,9.9503,30.0]
[1672618393402,30.0,9.9656,9.9502,133.54238626]
[1672618393610,30.0,9.9654,9.9504,30.0]
[1672618393818,75.38,9.9653,9.9504,30.0]
[1672618394021,30.0,9.9652,9.9504,30.0]
[1672618394352,30.0,9.9652,9.9506,30.0]
[1672618394353,30.0,9.965,9.9506,30.0]
[1672618394565,30.0,9.9648,9.9506,30.0]
[1672618394874,30.0,9.9646,9.9508,30.0]
[1672618395193,30.0,9.9644,9.9508,30.0]
[1672618395384,30.0,9.9642,9.951,30.0]
[1672618395594,75.39,9.9641,9.9512,30.0]
[1672618395816,30.0,9.964,9.9513,20.0]
[1672618396035,30.0,9.9638,9.9514,30.0]
[1672618396236,75.39,9.9637,9.9515,20.0]
[1672618396453,30.0,9.9636,9.9516,30.0]
[1672618396664,30.0,9.9634,9.9516,53.1315]
[1672618396983,30.0,9.9632,9.9517,20.0]
[1672618397175,30.0,9.963,9.9517,20.0]
[1672618397506,30.0,9.9628,9.9517,20.0]
[1672618397692,75.4,9.9627,9.9517,20.0]
[1672618397898,30.0,9.9626,9.9517,20.0]
[1672618398113,30.0,9.9624,9.9517,20.0]
[1672618398319,30.0,9.9622,9.9517,20.0]
[1672618398544,75.4,9.9621,9.9517,20.0]
[1672618398755,30.0,9.962,9.9517,20.0]
[1672618398967,30.0,9.9618,9.9517,20.0]
[1672618399165,30.0,9.9616,9.9517,20.0]
[1672618399383,75.41,9.9615,9.9517,20.0]
[1672618399709,30.0,9.9614,9.9517,20.0]
[1672618399918,30.0,9.9612,9.9517,20.0]
[1672618400133,30.0,9.961,9.9517,20.0]
[1672618400326,75.41,9.9609,9.9517,20.0]
[1672618400663,30.0,9.9608,9.9517,20.0]
[1672618400861,30.0,9.9606,9.9517,20.0]
[1672618402213,30.0,9.9604,9.9517,20.0]
[1672618402424,30.0,9.9602,9.9517,20.0]
[1672618403594,30.0,9.96,9.9517,20.0]
[1672618403811,30.0,9.9598,9.9517,20.0]
[1672618404116,30.0,9.9598,9.9516,23.1315]
[1672618404313,30.0,9.9595,9.95,235.694459]
[1672618404533,299.6,9.9593,9.95,235.694459]
[1672618404731,30.0,9.959,9.95,235.694459]
[1672618404942,299.6,9.9588,9.95,235.694459]
[1672618405277,95.42,9.9589,9.95,235.694459]
[1672618405278,329.6,9.9586,9.95,235.694459]
[1672618405469,299.6,9.9584,9.95,234.694459]
[1672618405680,329.6,9.9582,9.95,234.694459]
[1672618405890,30.0,9.9579,9.95,234.694459]
[1672618406112,299.6,9.9577,9.95,234.694459]
[1672618406321,234.694459,9.9481,9.9391,74.66177315]
[1672618406532,234.694459,9.9481,9.9311,74.66177315]
[1672618406533,75.51,9.948,9.9311,74.66177315]
[1672618406845,75.51,9.948,9.9364,30.0]
[1672618406846,30.0,9.9478,9.9364,30.0]
[1672618407041,30.0,9.9476,9.9364,30.0]
[1672618407248,95.51,9.9475,9.9364,30.0]
[1672618407462,234.694459,9.9481,9.9364,30.0]
[1672618407692,30.0,9.9479,9.9364,30.0]
[1672618407902,95.51,9.9478,9.9364,30.0]
[1672618408088,30.0,9.9477,9.9364,30.0]
[1672618408301,95.51,9.9476,9.9364,30.0]
[1672618408512,30.0,9.9475,9.9364,30.0]
[1672618408730,30.0,9.9473,9.9364,30.0]
[1672618408951,30.0,9.9471,9.9407,1.76783508]
[1672618409156,30.0,9.9469,9.9408,2.47496911]
[1672618409369,30.0,9.9467,9.9367,7.72689556]
[1672618409569,75.52,9.9466,9.9407,1.76783508]
[1672618409783,30.0,9.9465,9.9368,15.80730786]
[1672618409986,75.52,9.9464,9.9365,4.6828224]
[1672618410194,30.0,9.9463,9.9368,15.80730786]
[1672618410427,30.0,9.9463,9.9369,4.6828224]
[1672618410617,159.6327,9.9462,9.9369,4.6828224]
[1672618411145,30.0,9.9461,9.9369,4.6828224]
[1672618411457,30.0,9.946,9.9369,4.6828224]
[1672618412000,30.0,9.9458,9.9369,4.6828224]
[1672618412418,30.0,9.9456,9.9342,4.6828224]
[1672618413364,30.0,9.9454,9.9342,4.6828224]
[1672618413778,23.5898,9.9453,9.9342,4.6828224]
[1672618413990,30.0,9.9451,9.9342,4.6828224]
[1672618414205,75.53,9.945,9.9342,4.6828224]
[1672618414410,30.0,9.945,9.9342,4.6828224]
[1672618414614,75.53,9.9449,9.9342,4.6828224]
[1672618415038,30.0,9.945,9.9343,15.80730786]
[1672618415248,30.0,9.945,9.9345,30.0]
[1672618415458,75.53,9.945,9.9346,4.6828224]
[1672618415670,24.2233,9.9449,9.9346,4.6828224]
[1672618416319,24.2233,9.9448,9.9346,4.6828224]
[1672618416956,24.2233,9.9447,9.9346,4.6828224]
[1672618417474,24.2233,9.9447,9.9347,15.80730786]
[1672618417685,24.2233,9.9447,9.9348,34.6828224]
[1672618417884,24.2233,9.9447,9.9348,95.82508205]
[1672618418082,30.0,9.9446,9.9349,15.80730786]
[1672618418299,75.53,9.9445,9.935,4.6828224]
[1672618418507,30.0,9.9444,9.935,4.6828224]
[1672618418735,75.54,9.9443,9.935,4.6828224]
[1672618419046,75.54,9.9443,9.9349,4.6828224]
[1672618419259,30.0,9.9443,9.9349,4.6828224]
[1672618419456,30.0,9.9441,9.9343,4.6828224]